[Event "FIDE Grand Swiss 2023"]
[Site "Villa Marina, Douglas, Isle of Man"]
[Date "2023.11.04"]
[Round "10.23"]
[White "Yilmaz, Mustafa"]
[Black "Shevchenko, Kirill"]
[Result "1/2-1/2"]
[WhiteElo "2640"]
[BlackElo "2671"]
[EventDate "2023.10.25"]
[ECO "D35"]
[PlyCount "60"]
[BlackClock "00:00:59"]
[BlackFideId "14129574"]
[TimeControl "40/100 + 20/50 + 15 + 30s/move"]
[WhiteClock "00:01:24"]
[WhiteFideId "6302718"]

1.d4 {[%clk 01:40:57][%emt 00:00:02]} 1...Nf6 {[%clk 01:40:44][%emt 00:00:16]} 
2.c4 {[%clk 01:41:22][%emt 00:00:05]} 2...e6 {[%clk 01:41:08][%emt 00:00:06]} 
3.Nf3 {[%clk 01:41:29][%emt 00:00:23]} 3...d5 {[%clk 01:40:57][%emt 00:00:41]} 
4.Nc3 {[%clk 01:41:08][%emt 00:00:50]} 4...Nbd7 {[%clk 01:41:04][%emt 00:00:23]} 
5.cxd5 {[%clk 01:38:01][%emt 00:03:39]} 5...exd5 {[%clk 01:41:28][%emt
00:00:05]} 6.Bg5 {[%clk 01:38:27][%emt 00:00:03]} 6...Bb4 {[%clk 01:41:46][%emt
00:00:13]} 7.Qc2 {[%clk 01:33:39][%emt 00:05:18]} 7...h6 {[%clk 01:41:10][%emt
00:01:05]} 8.Bh4 {[%clk 01:33:00][%emt 00:01:09]} 8...g5 {[%clk 01:40:53][%emt
00:00:48]} 9.Bg3 {[%clk 01:33:26][%emt 00:00:04]} 9...Ne4 {[%clk 01:41:18][%emt
00:00:05]} 10.Nd2 {[%clk 01:32:57][%emt 00:00:59]} 10...Nxg3 {[%clk
01:41:40][%emt 00:00:09]} 11.hxg3 {[%clk 01:33:25][%emt 00:00:01]} 11...c6 
{[%clk 01:38:44][%emt 00:03:26]} 12.a3 {[%clk 01:32:06][%emt 00:01:49]} 
12...Be7 {[%clk 01:17:42][%emt 00:21:32]} 13.e4 {[%clk 01:18:29][%emt 00:14:07]} 
13...Nb6 {[%clk 01:02:24][%emt 00:15:48]} 14.O-O-O {[%clk 01:15:33][%emt
00:03:26]} 14...Be6 {[%clk 00:59:00][%emt 00:03:54]} 15.e5 {[%clk 01:15:02][%emt
00:01:01]} 15...Qd7 {[%clk 00:43:08][%emt 00:16:22]} 16.Bd3 {[%clk
01:04:53][%emt 00:10:39]} 16...O-O-O {[%clk 00:42:11][%emt 00:01:27]} 17.f4 
{[%clk 01:04:23][%emt 00:00:59]} 17...Bg4 {[%clk 00:38:21][%emt 00:04:21]} 
18.Rde1 {[%clk 01:00:54][%emt 00:03:59]} 18...gxf4 {[%clk 00:33:33][%emt
00:05:18]} 19.gxf4 {[%clk 01:00:58][%emt 00:00:26]} 19...Kb8 {[%clk
00:33:35][%emt 00:00:28]} 20.Kb1 {[%clk 00:50:48][%emt 00:10:40]} 20...Nc4 
{[%clk 00:22:20][%emt 00:11:45]} 21.Nf1 {[%clk 00:30:50][%emt 00:20:28]} 
21...h5 {[%clk 00:20:10][%emt 00:02:39]} 22.Nh2 {[%clk 00:24:32][%emt 00:06:47]} 
22...Rhg8 {[%clk 00:15:36][%emt 00:05:05]} 23.Rhf1 {[%clk 00:20:38][%emt
00:04:24]} 23...Qc8 {[%clk 00:08:28][%emt 00:07:38]} 24.Nxg4 {[%clk
00:19:59][%emt 00:01:09]} 24...Qxg4 {[%clk 00:08:56][%emt 00:00:02]} 25.Re2 
{[%clk 00:20:03][%emt 00:00:25]} 25...Qg3 {[%clk 00:07:37][%emt 00:01:50]} 
26.Rf3 {[%clk 00:11:10][%emt 00:09:23]} 26...Qh2 {[%clk 00:07:46][%emt
00:00:21]} 27.Ka2 {[%clk 00:11:04][%emt 00:00:36]} 27...Qg1 {[%clk
00:05:02][%emt 00:03:14]} 28.Ref2 {[%clk 00:08:08][%emt 00:03:26]} 28...Bh4 
{[%clk 00:01:14][%emt 00:04:19]} 29.Ne2 {[%clk 00:07:02][%emt 00:01:35]} 
29...Qxf2 {[%clk 00:01:13][%emt 00:00:31]} 30.Rxf2 {[%clk 00:07:30][%emt
00:00:01]} 30...Ne3 {[%clk 00:00:59][%emt 00:00:45]} 1/2-1/2

[Event "FIDE Grand Swiss 2023"]
[Site "Villa Marina, Douglas, Isle of Man"]
[Date "2023.11.04"]
[Round "10.25"]
[White "Van Foreest, Jorden"]
[Black "Sargsyan, Shant"]
[Result "0-1"]
[WhiteElo "2707"]
[BlackElo "2631"]
[EventDate "2023.10.25"]
[ECO "C84"]
[PlyCount "108"]
[BlackClock "00:27:32"]
[BlackFideId "13306766"]
[TimeControl "40/100 + 20/50 + 15 + 30s/move"]
[WhiteClock "00:19:41"]
[WhiteFideId "1039784"]

1.e4 {[%clk 01:40:48][%emt 00:00:11]} 1...e5 {[%clk 01:39:30][%emt 00:01:30]} 
2.Nf3 {[%clk 01:41:07][%emt 00:00:11]} 2...Nc6 {[%clk 01:39:50][%emt 00:00:10]} 
3.Bb5 {[%clk 01:41:15][%emt 00:00:22]} 3...a6 {[%clk 01:39:53][%emt 00:00:27]} 
4.Ba4 {[%clk 01:41:23][%emt 00:00:22]} 4...Nf6 {[%clk 01:40:16][%emt 00:00:07]} 
5.O-O {[%clk 01:41:42][%emt 00:00:10]} 5...Be7 {[%clk 01:40:43][%emt 00:00:04]} 
6.d3 {[%clk 01:41:44][%emt 00:00:28]} 6...b5 {[%clk 01:41:05][%emt 00:00:09]} 
7.Bb3 {[%clk 01:42:08][%emt 00:00:05]} 7...d6 {[%clk 01:41:29][%emt 00:00:06]} 
8.Bd2 {[%clk 01:41:18][%emt 00:01:20]} 8...Bg4 {[%clk 01:41:01][%emt 00:00:58]} 
9.c3 {[%clk 01:38:38][%emt 00:03:10]} 9...Na5 {[%clk 01:40:35][%emt 00:00:56]} 
10.Bc2 {[%clk 01:38:45][%emt 00:00:23]} 10...c5 {[%clk 01:40:53][%emt 00:00:12]} 
11.h3 {[%clk 01:37:58][%emt 00:01:17]} 11...Bh5 {[%clk 01:41:06][%emt 00:00:17]} 
12.Re1 {[%clk 01:37:07][%emt 00:01:21]} 12...Qc7 {[%clk 01:39:48][%emt
00:01:49]} 13.Bc1 {[%clk 01:35:54][%emt 00:01:42]} 13...Rd8 {[%clk
01:39:46][%emt 00:00:33]} 14.Nbd2 {[%clk 01:34:09][%emt 00:02:14]} 14...O-O 
{[%clk 01:40:08][%emt 00:00:08]} 15.Qe2 {[%clk 01:33:30][%emt 00:01:09]} 
15...Rfe8 {[%clk 01:38:21][%emt 00:02:17]} 16.g4 {[%clk 01:33:13][%emt
00:00:47]} 16...Bg6 {[%clk 01:37:16][%emt 00:01:36]} 17.a4 {[%clk 01:32:44][%emt
00:00:58]} 17...Nc6 {[%clk 01:20:33][%emt 00:17:13]} 18.Nh4 {[%clk
01:32:06][%emt 00:01:08]} 18...d5 {[%clk 01:10:42][%emt 00:10:21]} 19.g5 {[%clk
01:30:49][%emt 00:01:47]} 19...Nh5 {[%clk 01:07:18][%emt 00:03:54]} 20.exd5 
{[%clk 01:27:34][%emt 00:03:45]} 20...Nf4 {[%clk 01:03:55][%emt 00:03:52]} 
21.Qf1 {[%clk 01:27:34][%emt 00:00:31]} 21...Nxd5 {[%clk 00:59:41][%emt
00:04:45]} 22.Nxg6 {[%clk 01:22:52][%emt 00:05:11]} 22...hxg6 {[%clk
00:59:38][%emt 00:00:33]} 23.axb5 {[%clk 01:22:09][%emt 00:01:12]} 23...axb5 
{[%clk 01:00:05][%emt 00:00:04]} 24.Nf3 {[%clk 01:22:29][%emt 00:00:09]} 
24...Bf8 {[%clk 00:55:32][%emt 00:05:04]} 25.Re4 {[%clk 01:14:50][%emt
00:08:08]} 25...Ra8 {[%clk 00:48:36][%emt 00:07:26]} 26.Bd2 {[%clk
00:59:24][%emt 00:15:56]} 26...Rxa1 {[%clk 00:47:14][%emt 00:01:53]} 27.Qxa1 
{[%clk 00:58:36][%emt 00:01:17]} 27...Nde7 {[%clk 00:47:09][%emt 00:00:34]} 
28.Bb3 {[%clk 00:54:33][%emt 00:04:34]} 28...Nf5 {[%clk 00:46:03][%emt
00:01:36]} 29.Bd5 {[%clk 00:51:25][%emt 00:03:38]} 29...Nd6 {[%clk
00:41:10][%emt 00:05:23]} 30.Re2 {[%clk 00:41:41][%emt 00:10:14]} 30...Ne7 
{[%clk 00:35:49][%emt 00:05:50]} 31.Bb3 {[%clk 00:30:43][%emt 00:11:29]} 
31...c4 {[%clk 00:29:18][%emt 00:07:01]} 32.Bc2 {[%clk 00:27:42][%emt 00:03:30]} 
32...cxd3 {[%clk 00:26:01][%emt 00:03:48]} 33.Bxd3 {[%clk 00:27:52][%emt
00:00:20]} 33...e4 {[%clk 00:24:56][%emt 00:01:35]} 34.Bxe4 {[%clk
00:28:14][%emt 00:00:07]} 34...Qc4 {[%clk 00:24:22][%emt 00:01:05]} 35.Qe1 
{[%clk 00:21:05][%emt 00:07:39]} 35...Nef5 {[%clk 00:23:32][%emt 00:01:19]} 
36.b3 {[%clk 00:20:38][%emt 00:00:57]} 36...Qxb3 {[%clk 00:22:51][%emt
00:01:11]} 37.Bc6 {[%clk 00:17:10][%emt 00:03:57]} 37...Rc8 {[%clk
00:19:43][%emt 00:03:38]} 38.Ne5 {[%clk 00:14:04][%emt 00:03:38]} 38...f6 
{[%clk 00:14:51][%emt 00:05:22]} 39.gxf6 {[%clk 00:08:35][%emt 00:05:59]} 
39...gxf6 {[%clk 00:15:12][%emt 00:00:08]} 40.Bd7 {[%clk 00:07:53][%emt
00:01:11]} 40...fxe5 {[%clk 00:12:48][%emt 00:02:55]} 41.Rxe5 {[%clk
00:01:00][%emt 00:07:23]} 41...Rc4 {[%clk 00:05:56][%emt 00:07:22]} 42.Be6+ 
{[%clk 00:43:35][%emt 00:07:55]} 42...Kh7 {[%clk 00:54:17][%emt 00:02:09]} 
43.Rc5 {[%clk 00:41:36][%emt 00:02:29]} 43...Qa3 {[%clk 00:49:53][%emt
00:04:51]} 44.Rxc4 {[%clk 00:29:03][%emt 00:13:06]} 44...Nxc4 {[%clk
00:40:25][%emt 00:09:59]} 45.Bxf5 {[%clk 00:27:56][%emt 00:01:36]} 45...gxf5 
{[%clk 00:40:39][%emt 00:00:16]} 46.Qe6 {[%clk 00:28:22][%emt 00:00:04]} 
46...Qd6 {[%clk 00:38:15][%emt 00:02:52]} 47.Qf7+ {[%clk 00:20:05][%emt
00:08:48]} 47...Bg7 {[%clk 00:38:17][%emt 00:00:27]} 48.Qh5+ {[%clk
00:19:58][%emt 00:00:38]} 48...Kg8 {[%emt 00:00:16]} 49.Qe8+ {[%clk
00:20:20][%emt 00:00:02]} 49...Bf8 {[%clk 00:38:32][%emt 00:00:32]} 50.Bg5 
{[%clk 00:20:01][%emt 00:00:52]} 50...Ne5 {[%clk 00:35:28][%emt 00:03:33]} 
51.h4 {[%clk 00:20:24][%emt 00:00:07]} 51...Qd1+ {[%clk 00:32:30][%emt
00:03:28]} 52.Kh2 {[%clk 00:20:47][%emt 00:00:07]} 52...Qd7 {[%clk
00:31:44][%emt 00:01:15]} 53.Qa8 {[%clk 00:20:13][%emt 00:01:06]} 53...Qc6 
{[%clk 00:29:23][%emt 00:02:49]} 54.Qd8 {[%clk 00:20:10][%emt 00:00:33]} 
54...Qd6 {[%clk 00:27:32] [%emt 00:02:20]} 0-1

[Event "FIDE Grand Swiss 2023"]
[Site "Villa Marina, Douglas, Isle of Man"]
[Date "2023.11.04"]
[Round "10.26"]
[White "Aryan, Chopra"]
[Black "Shankland, Sam"]
[Result "1/2-1/2"]
[WhiteElo "2634"]
[BlackElo "2698"]
[EventDate "2023.10.25"]
[ECO "B12"]
[PlyCount "36"]
[BlackFideId "2004887"]
[TimeControl "40/100 + 20/50 + 15 + 30s/move"]
[WhiteFideId "5084423"]

1.e4 {[%clk 01:40:56][%emt 00:00:03]} 1...c6 {[%clk 01:40:50][%emt 00:00:11]} 
2.d4 {[%clk 01:41:20][%emt 00:00:07]} 2...d5 {[%clk 01:41:15][%emt 00:00:05]} 
3.e5 {[%clk 01:41:45][%emt 00:00:04]} 3...Bf5 {[%clk 01:41:39][%emt 00:00:06]} 
4.Nd2 {[%clk 01:42:01][%emt 00:00:14]} 4...e6 {[%clk 01:41:59][%emt 00:00:10]} 
5.Nb3 {[%clk 01:42:25][%emt 00:00:06]} 5...Nd7 {[%clk 01:42:22][%emt 00:00:07]} 
6.Nf3 {[%clk 01:42:44][%emt 00:00:12]} 6...Qc7 {[%clk 01:42:44][%emt 00:00:08]} 
7.Be2 {[%clk 01:41:57][%emt 00:01:16]} 7...c5 {[%clk 01:42:33][%emt 00:00:42]} 
8.O-O {[%clk 01:39:20][%emt 00:03:06]} 8...c4 {[%clk 01:38:50][%emt 00:04:14]} 
9.Nbd2 {[%clk 01:39:45][%emt 00:00:04]} 9...h6 {[%clk 01:35:52][%emt 00:03:28]} 
10.c3 {[%clk 01:38:22][%emt 00:01:54]} 10...Ne7 {[%clk 01:34:54][%emt 00:01:27]} 
11.b3 {[%clk 01:30:54][%emt 00:07:58]} 11...cxb3 {[%clk 01:34:18][%emt
00:01:07]} 12.Qxb3 {[%clk 01:17:41][%emt 00:13:43]} 12...Nc6 {[%clk
01:33:40][%emt 00:01:07]} 13.Ba3 {[%clk 01:08:45][%emt 00:09:27]} 13...Bxa3 
{[%clk 01:24:56][%emt 00:09:14]} 14.Qxa3 {[%clk 01:09:09][%emt 00:00:06]} 
14...Qa5 {[%clk 01:16:18] [%emt 00:09:08]} 15.Qb2 {[%clk 01:03:43] [%emt
00:05:56]} 15...Qb6 {[%clk 01:15:47] [%emt 00:01:01]} 16.Qa3 {[%clk 01:03:17]
[%emt 00:00:56]} 16...Qa5 {[%clk 01:11:27] [%emt 00:04:49]} 17.Qb2 {[%clk
01:03:43][%emt 00:05:56]} 17...Qb6 {[%clk 01:15:47][%emt 00:01:01]} 18.Qa3 
{[%clk 01:03:17][%emt 00:00:56]} 18...Qa5 {[%clk 01:16:18][%emt 00:09:08]} 1/2-1/2

[Event "FIDE Grand Swiss 2023"]
[Site "Villa Marina, Douglas, Isle of Man"]
[Date "2023.11.04"]
[Round "10.27"]
[White "Navara, David"]
[Black "Gledura, Benjamin"]
[Result "1/2-1/2"]
[WhiteElo "2689"]
[BlackElo "2633"]
[EventDate "2023.10.25"]
[ECO "B90"]
[PlyCount "62"]
[BlackClock "00:45:20"]
[BlackFideId "712779"]
[TimeControl "40/100 + 20/50 + 15 + 30s/move"]
[WhiteClock "01:06:51"]
[WhiteFideId "309095"]

1.e4 {[%clk 01:40:58][%emt 00:00:02]} 1...c5 {[%clk 01:40:44][%emt 00:00:16]} 
2.Nf3 {[%clk 01:41:24][%emt 00:00:04]} 2...d6 {[%clk 01:41:04][%emt 00:00:10]} 
3.d4 {[%clk 01:41:45][%emt 00:00:09]} 3...cxd4 {[%clk 01:41:27][%emt 00:00:07]} 
4.Nxd4 {[%clk 01:42:11][%emt 00:00:05]} 4...Nf6 {[%clk 01:41:42][%emt 00:00:16]} 
5.Nc3 {[%clk 01:42:31][%emt 00:00:10]} 5...a6 {[%clk 01:42:05][%emt 00:00:06]} 
6.h3 {[%clk 01:41:58][%emt 00:01:03]} 6...e6 {[%clk 01:41:42][%emt 00:00:53]} 
7.g4 {[%clk 01:42:24][%emt 00:00:05]} 7...d5 {[%clk 01:41:26][%emt 00:00:45]} 
8.Nde2 {[%clk 01:41:13][%emt 00:01:42]} 8...Bc5 {[%clk 01:41:17][%emt 00:00:39]} 
9.exd5 {[%clk 01:41:30][%emt 00:00:13]} 9...Qb6 {[%clk 01:41:16][%emt 00:00:31]} 
10.Be3 {[%clk 01:41:52][%emt 00:00:08]} 10...Bxe3 {[%clk 01:41:38][%emt
00:00:09]} 11.fxe3 {[%clk 01:42:14][%emt 00:00:08]} 11...Qxb2 {[%clk
01:41:23][%emt 00:00:45]} 12.Rb1 {[%clk 01:42:00][%emt 00:00:43]} 12...Qa3 
{[%clk 01:41:43][%emt 00:00:10]} 13.Rb3 {[%clk 01:37:27][%emt 00:05:04]} 
13...Qa5 {[%clk 01:31:05][%emt 00:11:07]} 14.Bg2 {[%clk 01:36:17][%emt
00:01:40]} 14...Nxd5 {[%clk 01:20:12][%emt 00:11:23]} 15.Bxd5 {[%clk
01:35:58][%emt 00:00:50]} 15...exd5 {[%clk 01:20:34][%emt 00:00:07]} 16.Qxd5 
{[%clk 01:34:54][%emt 00:01:35]} 16...Nc6 {[%clk 01:15:19][%emt 00:05:45]} 
17.Qe4+ {[%clk 01:33:38][%emt 00:01:46]} 17...Qe5 {[%clk 01:07:43][%emt
00:08:06]} 18.Qxe5+ {[%clk 01:33:06][%emt 00:01:02]} 18...Nxe5 {[%clk
01:08:07][%emt 00:00:06]} 19.Nd5 {[%clk 01:33:14][%emt 00:00:22]} 19...O-O 
{[%clk 01:06:40][%emt 00:01:57]} 20.Nb6 {[%clk 01:32:44][%emt 00:00:59]} 
20...Be6 {[%clk 01:02:05][%emt 00:05:06]} 21.Nxa8 {[%clk 01:32:48][%emt
00:00:26]} 21...Bxb3 {[%clk 01:02:29][%emt 00:00:06]} 22.axb3 {[%clk
01:32:14][%emt 00:01:04]} 22...Rxa8 {[%clk 01:02:53][%emt 00:00:06]} 23.Nd4 
{[%clk 01:32:17][%emt 00:00:27]} 23...Kf8 {[%clk 01:00:18][%emt 00:03:05]} 
24.Ke2 {[%clk 01:15:02][%emt 00:17:45]} 24...g6 {[%clk 00:57:49][%emt 00:02:58]} 
25.Ra1 {[%clk 01:13:06][%emt 00:02:27]} 25...b6 {[%clk 00:54:21][%emt 00:03:57]} 
26.Nf3 {[%clk 01:10:42][%emt 00:02:55]} 26...Nxf3 {[%clk 00:48:12][%emt
00:06:39]} 27.Kxf3 {[%clk 01:10:59][%emt 00:00:13]} 27...a5 {[%clk
00:48:06][%emt 00:00:36]} 28.c4 {[%clk 01:10:54][%emt 00:00:35]} 28...Ke7 
{[%clk 00:45:26][%emt 00:03:10]} 29.Rd1 {[%clk 01:06:15][%emt 00:05:08]} 
29...a4 {[%clk 00:44:34] [%emt 00:01:22]} 30.bxa4 {[%clk 01:06:34] [%emt
00:00:12]} 30...Rxa4 {[%clk 00:44:57] [%emt 00:00:07]} 31.Rb1 {[%clk 01:06:55]
[%emt 00:00:08]} 31...Rxc4 {[%clk 00:45:20] [%emt 00:00:08]} 1/2-1/2

[Event "FIDE Grand Swiss 2023"]
[Site "Villa Marina, Douglas, Isle of Man"]
[Date "2023.11.04"]
[Round "10.28"]
[White "Sargissian, Gabriel"]
[Black "Svane, Frederik"]
[Result "1/2-1/2"]
[WhiteElo "2686"]
[BlackElo "2626"]
[EventDate "2023.10.25"]
[ECO "D35"]
[PlyCount "152"]
[BlackFideId "12923044"]
[TimeControl "40/100 + 20/50 + 15 + 30s/move"]
[WhiteFideId "13300881"]

1.d4 {[%clk 01:40:57][%emt 00:00:02]} 1...Nf6 {[%clk 01:40:36][%emt 00:00:25]} 
2.c4 {[%clk 01:41:20][%emt 00:00:07]} 2...e6 {[%clk 01:41:02][%emt 00:00:04]} 
3.Nf3 {[%clk 01:41:28][%emt 00:00:21]} 3...d5 {[%clk 01:41:28][%emt 00:00:05]} 
4.Nc3 {[%clk 01:41:51][%emt 00:00:07]} 4...Nbd7 {[%clk 01:41:54][%emt 00:00:04]} 
5.cxd5 {[%clk 01:39:13][%emt 00:03:08]} 5...exd5 {[%clk 01:42:09][%emt
00:00:15]} 6.Bg5 {[%clk 01:38:50][%emt 00:00:52]} 6...Bb4 {[%clk 01:42:19][%emt
00:00:21]} 7.e3 {[%clk 01:36:12][%emt 00:03:07]} 7...h6 {[%clk 01:42:33][%emt
00:00:17]} 8.Bh4 {[%clk 01:34:29][%emt 00:02:12]} 8...g5 {[%clk 01:42:38][%emt
00:00:26]} 9.Bg3 {[%clk 01:34:52][%emt 00:00:06]} 9...Ne4 {[%clk 01:43:03][%emt
00:00:05]} 10.Nd2 {[%clk 01:34:39][%emt 00:00:43]} 10...Nxg3 {[%clk
01:43:11][%emt 00:00:23]} 11.hxg3 {[%clk 01:35:02][%emt 00:00:07]} 11...c6 
{[%clk 01:43:25][%emt 00:00:16]} 12.Bd3 {[%clk 01:35:04][%emt 00:00:27]} 
12...Nb6 {[%clk 01:43:23][%emt 00:00:33]} 13.Qc2 {[%clk 01:33:32][%emt
00:02:01]} 13...Be6 {[%clk 01:43:38][%emt 00:00:15]} 14.a3 {[%clk 01:32:44][%emt
00:01:19]} 14...Be7 {[%clk 01:40:56][%emt 00:03:12]} 15.O-O-O {[%clk
01:28:23][%emt 00:04:50]} 15...Qd7 {[%clk 01:39:23][%emt 00:02:04]} 16.Nb3 
{[%clk 01:18:46][%emt 00:10:06]} 16...Qc7 {[%clk 01:26:08][%emt 00:13:45]} 
17.Kb1 {[%clk 01:13:21][%emt 00:05:55]} 17...O-O-O {[%clk 01:18:50][%emt
00:07:49]} 18.Nc5 {[%clk 01:11:20][%emt 00:02:31]} 18...Kb8 {[%clk
01:13:59][%emt 00:05:20]} 19.N3a4 {[%clk 00:57:22][%emt 00:14:28]} 19...Bc8 
{[%clk 01:06:32][%emt 00:07:57]} 20.Bf5 {[%clk 00:56:34][%emt 00:01:18]} 
20...h5 {[%clk 01:01:02][%emt 00:06:00]} 21.Nxb6 {[%clk 00:48:56][%emt
00:08:08]} 21...axb6 {[%clk 00:58:47][%emt 00:02:45]} 22.Na4 {[%clk
00:48:57][%emt 00:00:30]} 22...b5 {[%clk 00:42:34][%emt 00:16:43]} 23.Nc5 
{[%clk 00:49:06][%emt 00:00:20]} 23...b6 {[%clk 00:40:23][%emt 00:02:41]} 
24.Nb3 {[%clk 00:49:22][%emt 00:00:14]} 24...Bxf5 {[%clk 00:37:09][%emt
00:03:45]} 25.Qxf5 {[%clk 00:49:39][%emt 00:00:12]} 25...Qd7 {[%clk
00:37:02][%emt 00:00:37]} 26.Qxd7 {[%clk 00:36:25][%emt 00:13:44]} 26...Rxd7 
{[%clk 00:36:55][%emt 00:00:37]} 27.Nc1 {[%clk 00:36:31][%emt 00:00:24]} 
27...c5 {[%clk 00:25:36][%emt 00:11:50]} 28.Ne2 {[%clk 00:29:42][%emt 00:07:18]} 
28...Kb7 {[%clk 00:23:45][%emt 00:02:22]} 29.g4 {[%clk 00:25:18][%emt 00:04:54]} 
29...h4 {[%clk 00:24:09][%emt 00:00:05]} 30.Rh3 {[%clk 00:25:01][%emt 00:00:47]} 
30...Rh6 {[%clk 00:19:14][%emt 00:05:25]} 31.Ng3 {[%clk 00:25:14][%emt
00:00:16]} 31...Rc6 {[%clk 00:18:33][%emt 00:01:11]} 32.Nf5 {[%clk
00:25:18][%emt 00:00:28]} 32...Bf6 {[%clk 00:18:04][%emt 00:00:59]} 33.g3 
{[%clk 00:24:32][%emt 00:01:16]} 33...hxg3 {[%clk 00:18:28][%emt 00:00:06]} 
34.Rxg3 {[%clk 00:24:51][%emt 00:00:10]} 34...Ka6 {[%clk 00:16:56][%emt
00:02:04]} 35.Rh3 {[%clk 00:20:25][%emt 00:04:54]} 35...Ka5 {[%clk
00:17:09][%emt 00:00:17]} 36.Rh6 {[%clk 00:14:40][%emt 00:06:15]} 36...Re6 
{[%clk 00:14:08][%emt 00:03:32]} 37.Rc1 {[%clk 00:12:21][%emt 00:02:49]} 
37...b4 {[%clk 00:02:57][%emt 00:11:40]} 38.dxc5 {[%clk 00:03:02][%emt
00:09:50]} 38...bxa3 {[%clk 00:03:22][%emt 00:00:05]} 39.c6 {[%clk
00:03:04][%emt 00:00:27]} 39...Rc7 {[%clk 00:02:08][%emt 00:01:44]} 40.bxa3 
{[%clk 00:03:01][%emt 00:00:33]} 40...Ka4 {[%clk 00:00:33][%emt 00:02:05]} 
41.f4 {[%clk 00:43:48][%emt 00:09:42]} 41...b5 {[%clk 00:27:48][%emt 00:23:15]} 
42.fxg5 {[%clk 00:38:32][%emt 00:05:46]} 42...Bxg5 {[%clk 00:28:01][%emt
00:00:17]} 43.Rxe6 {[%clk 00:38:55][%emt 00:00:08]} 43...fxe6 {[%clk
00:28:28][%emt 00:00:02]} 44.Nd4 {[%clk 00:38:51][%emt 00:00:34]} 44...Bxe3 
{[%clk 00:28:53][%emt 00:00:05]} 45.Nxe6 {[%clk 00:39:17][%emt 00:00:04]} 
45...Rc8 {[%clk 00:29:14][%emt 00:00:09]} 46.Rc2 {[%clk 00:37:03][%emt
00:02:44]} 46...Kb3 {[%clk 00:17:21][%emt 00:12:23]} 47.c7 {[%clk 00:27:52][%emt
00:09:41]} 47...d4 {[%clk 00:17:39][%emt 00:00:12]} 48.Rc6 {[%clk 00:18:50][%emt
00:09:31]} 48...d3 {[%clk 00:14:15][%emt 00:03:54]} 49.Rd6 {[%clk 00:19:10][%emt
00:00:10]} 49...Kc3 {[%clk 00:14:12][%emt 00:00:34]} 50.g5 {[%clk 00:19:21][%emt
00:00:19]} 50...d2 {[%clk 00:03:48][%emt 00:10:55]} 51.g6 {[%clk 00:18:51][%emt
00:00:59]} 51...Bb6 {[%clk 00:02:58][%emt 00:01:20]} 52.g7 {[%clk 00:18:28][%emt
00:00:53]} 52...Rg8 {[%clk 00:02:23][%emt 00:01:06]} 53.Rd7 {[%clk
00:16:13][%emt 00:02:44]} 53...Re8 {[%clk 00:01:06][%emt 00:01:48]} 54.Nf8 
{[%clk 00:10:52][%emt 00:05:51]} 54...Bd4 {[%clk 00:01:27][%emt 00:00:09]} 
55.Rxd4 {[%clk 00:11:15][%emt 00:00:06]} 55...Re1+ {[%clk 00:01:50][%emt
00:00:07]} 56.Ka2 {[%clk 00:11:42][%emt 00:00:04]} 56...Kxd4 {[%clk
00:02:12][%emt 00:00:08]} 57.c8=Q {[%clk 00:07:29][%emt 00:04:43]} 57...d1=Q 
{[%clk 00:02:36][%emt 00:00:04]} 58.Qd7+ {[%clk 00:07:44][%emt 00:00:16]} 
58...Kc3 {[%clk 00:03:02][%emt 00:00:04]} 59.Qc6+ {[%clk 00:08:03][%emt
00:00:11]} 59...Kd3 {[%clk 00:01:59][%emt 00:01:33]} 60.Qd5+ {[%clk
00:07:50][%emt 00:00:43]} 60...Kc3 {[%clk 00:02:25][%emt 00:00:05]} 61.Qc5+ 
{[%clk 00:06:22][%emt 00:01:57]} 61...Kd3 {[%clk 00:02:19][%emt 00:00:37]} 
62.Qd6+ {[%clk 00:03:05][%emt 00:03:47]} 62...Kc3 {[%clk 00:02:38][%emt
00:00:11]} 63.Qb4+ {[%clk 00:03:07][%emt 00:00:26]} 63...Kd3 {[%clk
00:03:02][%emt 00:00:08]} 64.Qxb5+ {[%clk 00:03:27][%emt 00:00:10]} 64...Ke4 
{[%clk 00:07:39][%emt 00:10:52]} 65.Qc4+ {[%clk 00:17:54][%emt 00:01:03]} 
65...Ke3 {[%clk 00:06:49][%emt 00:01:20]} 66.Qc3+ {[%clk 00:15:52][%emt
00:02:31]} 66...Ke4 {[%clk 00:07:17][%emt 00:00:03]} 67.Qxe1+ {[%clk
00:13:51][%emt 00:02:31]} 67...Qxe1 {[%clk 00:07:43][%emt 00:00:05]} 68.g8=Q 
{[%clk 00:14:11][%emt 00:00:10]} 68...Qd2+ {[%clk 00:05:38] [%emt 00:02:34]} 
69.Kb3 {[%clk 00:14:34] [%emt 00:00:06]} 69...Qd3+ {[%clk 00:06:06] [%emt
00:00:04]} 70.Kb4 {[%clk 00:14:55] [%emt 00:00:07]} 70...Qd6+ {[%clk 00:06:34]
[%emt 00:00:03]} 71.Kb5 {[%clk 00:13:59] [%emt 00:01:26]} 71...Qxa3 {[%clk
00:05:42] [%emt 00:01:22]} 72.Qg4+ {[%clk 00:14:01] [%emt 00:00:28]} 72...Ke5 
{[%clk 00:05:38] [%emt 00:00:31]} 73.Nd7+ {[%clk 00:13:42] [%emt 00:00:51]} 
73...Kd6 {[%clk 00:05:35] [%emt 00:00:33]} 74.Qd4+ {[%clk 00:14:05] [%emt
00:00:08]} 74...Ke6 {[%clk 00:05:02] [%emt 00:01:00]} 75.Nc5+ {[%clk 00:14:23]
[%emt 00:00:15]} 75...Kf5 {[%clk 00:05:21] [%emt 00:00:09]} 76.Qe4+ {[%clk
00:14:29] [%emt 00:00:26]} 76...Kg5 {[%clk 00:04:46]} 1/2-1/2